[Event "Live Chess"]
[Site "Chess.com"]
[Date "2024.06.01"]
[Round "-"]
[White "missedJariChance"]
[Black "Zhevzh1k7"]
[Result "1-0"]
[WhiteElo "1342"]
[BlackElo "1105"]
[TimeControl "300"]
[EndTime "13:02:17 PDT"]
[Termination "missedJariChance won by resignation"]

1. b3 {[%clk 0:04:57.2]} 1... d5 {[%clk 0:04:58]} 2. Bb2 {[%clk 0:04:56]} 2...
c5 {[%clk 0:04:54.2]} 3. Nf3 {[%clk 0:04:54.6]} 3... Nc6 {[%clk 0:04:52.2]} 4.
e3 {[%clk 0:04:53.5]} 4... Bf5 {[%clk 0:04:49.3]} 5. Bb5 {[%clk 0:04:50]} 5...
Qb6 {[%clk 0:04:46.4]} 6. Bxc6+ {[%clk 0:04:47]} 6... Qxc6 {[%clk 0:04:44.8]} 7.
O-O {[%clk 0:04:43.7]} 7... Nf6 {[%clk 0:04:43.1]} 8. Ne5 {[%clk 0:04:34.2]}
8... Qe6 {[%clk 0:04:38.4]} 9. d4 {[%clk 0:04:27.7]} 9... cxd4 {[%clk
0:04:36.9]} 10. Bxd4 {[%clk 0:04:24.5]} 10... Nd7 {[%clk 0:04:31.3]} 11. Nf3
{[%clk 0:04:04.9]} 11... b6 {[%clk 0:04:17.5]} 12. Nbd2 {[%clk 0:03:56.1]} 12...
Qc6 {[%clk 0:04:15]} 13. Rc1 {[%clk 0:03:52.2]} 13... e6 {[%clk 0:04:08.9]} 14.
c4 {[%clk 0:03:50.5]} 14... Bb4 {[%clk 0:04:00.8]} 15. cxd5 {[%clk 0:03:45.8]}
15... Qxd5 {[%clk 0:03:58.6]} 16. Nc4 {[%clk 0:03:41.2]} 16... O-O {[%clk
0:03:52]} 17. Nh4 {[%clk 0:03:28.7]} 17... b5 {[%clk 0:03:42.4]} 18. Nxf5 {[%clk
0:03:24.1]} 18... exf5 {[%clk 0:03:36.4]} 19. Nb2 {[%clk 0:03:15.8]} 19... a5
{[%clk 0:03:24.6]} 20. Qh5 {[%clk 0:03:13.4]} 20... Qe6 {[%clk 0:03:08.6]} 21.
Qg5 {[%clk 0:02:58.2]} 21... f6 {[%clk 0:03:02.5]} 22. Qf4 {[%clk 0:02:53.6]}
22... Bd6 {[%clk 0:02:51.6]} 23. Qf3 {[%clk 0:02:51.5]} 23... a4 {[%clk
0:02:43]} 24. Rc6 {[%clk 0:02:42.2]} 24... axb3 {[%clk 0:02:37.3]} 25. axb3
{[%clk 0:02:39.4]} 25... Ne5 {[%clk 0:01:57.1]} 26. Bxe5 {[%clk 0:02:28.6]}
26... fxe5 {[%clk 0:01:55.8]} 27. Rd1 {[%clk 0:02:26.3]} 27... Rad8 {[%clk
0:01:40.6]} 28. Nd3 {[%clk 0:01:58.9]} 28... e4 {[%clk 0:01:38.9]} 29. Nf4
{[%clk 0:01:54.4]} 29... Bxf4 {[%clk 0:01:22]} 30. Rxe6 {[%clk 0:01:46.6]} 30...
exf3 {[%clk 0:01:14]} 31. Rxd8 {[%clk 0:01:43.4]} 31... Rxd8 {[%clk 0:01:08.6]}
32. gxf3 {[%clk 0:01:41.7]} 32... Bh6 {[%clk 0:01:00.7]} 33. Kg2 {[%clk
0:01:39.9]} 33... Rd3 {[%clk 0:00:57.1]} 34. Re5 {[%clk 0:01:36.5]} 34... g6
{[%clk 0:00:54.7]} 35. Rxb5 {[%clk 0:01:34.9]} 35... Kf7 {[%clk 0:00:50.7]} 36.
Rb7+ {[%clk 0:01:31.9]} 36... Kg8 {[%clk 0:00:46.4]} 37. b4 {[%clk 0:01:30.4]}
37... Rb3 {[%clk 0:00:44.7]} 38. b5 {[%clk 0:01:29.4]} 38... Bf8 {[%clk
0:00:43.7]} 39. b6 {[%clk 0:01:27.8]} 39... h5 {[%clk 0:00:35.5]} 40. Rb8 {[%clk
0:01:25.4]} 40... Kg7 {[%clk 0:00:30.2]} 41. b7 {[%clk 0:01:24.2]} 41... Bd6
{[%clk 0:00:27.3]} 42. Rd8 {[%clk 0:01:16.7]} 42... Bc7 {[%clk 0:00:24.1]} 43.
Rd7+ {[%clk 0:01:13.1]} 43... Kf6 {[%clk 0:00:22.1]} 44. Rxc7 {[%clk 0:01:11.8]}
44... Rb2 {[%clk 0:00:20.5]} 45. Kg3 {[%clk 0:01:06.6]} 45... Kg5 {[%clk
0:00:19]} 46. e4 {[%clk 0:01:00.5]} 46... h4+ {[%clk 0:00:17.9]} 47. Kg2 {[%clk
0:00:57.2]} 47... h3+ {[%clk 0:00:16]} 48. Kg3 {[%clk 0:00:54.9]} 48... Kh5
{[%clk 0:00:13.2]} 49. exf5 {[%clk 0:00:53.5]} 49... gxf5 {[%clk 0:00:11.8]} 50.
Kxh3 {[%clk 0:00:50.8]} 50... Rb3 {[%clk 0:00:10]} 51. Kg3 {[%clk 0:00:49.2]}
51... f4+ {[%clk 0:00:08.6]} 52. Kxf4 {[%clk 0:00:47.7]} 52... Kg6 {[%clk
0:00:07.9]} 53. Kg3 {[%clk 0:00:46.7]} 53... Kf6 {[%clk 0:00:06.9]} 54. h4
{[%clk 0:00:45.8]} 54... Ke6 {[%clk 0:00:06.5]} 55. h5 {[%clk 0:00:44.9]} 55...
Kd6 {[%clk 0:00:06.4]} 56. Rg7 {[%clk 0:00:43.1]} 56... Kc6 {[%clk 0:00:05.1]}
57. h6 {[%clk 0:00:42.2]} 57... Rxb7 {[%clk 0:00:03.8]} 58. Rxb7 {[%clk
0:00:40.9]} 58... Kxb7 {[%clk 0:00:03.7]} 59. h7 {[%clk 0:00:40.2]} 59... Kc6
{[%clk 0:00:03.6]} 60. h8=Q {[%clk 0:00:39]} 60... Kc5 {[%clk 0:00:03.5]} 1-0

[Event "Live Chess"]
[Site "Chess.com"]
[Date "2024.06.01"]
[Round "-"]
[White "Sweet-O"]
[Black "GoldsmanB"]
[Result "0-1"]
[WhiteElo "1551"]
[BlackElo "1088"]
[TimeControl "300"]
[EndTime "13:02:22 PDT"]
[Termination "GoldsmanB won by resignation"]

1. d4 {[%clk 0:04:59]} 1... Nf6 {[%clk 0:04:57.3]} 2. Nc3 {[%clk 0:04:58.9]}
2... d5 {[%clk 0:04:54.5]} 3. Bf4 {[%clk 0:04:58.2]} 3... e6 {[%clk 0:04:52.9]}
4. e3 {[%clk 0:04:57.7]} 4... Bd6 {[%clk 0:04:51.7]} 5. Nge2 {[%clk 0:04:51.5]}
5... O-O {[%clk 0:04:49.6]} 6. Nb5 {[%clk 0:04:47.3]} 6... Bxf4 {[%clk
0:04:46.9]} 7. Nxf4 {[%clk 0:04:45.5]} 7... c6 {[%clk 0:04:44.3]} 8. Nc3 {[%clk
0:04:42.6]} 8... Nbd7 {[%clk 0:04:38.7]} 9. g4 {[%clk 0:04:36.3]} 9... Qb6
{[%clk 0:04:35.4]} 10. Na4 {[%clk 0:04:32.8]} 10... Qa5+ {[%clk 0:04:33.3]} 11.
c3 {[%clk 0:04:31.8]} 11... b5 {[%clk 0:04:29.7]} 12. Nc5 {[%clk 0:04:25.9]}
12... Nxc5 {[%clk 0:04:27.8]} 13. dxc5 {[%clk 0:04:25.8]} 13... Nd7 {[%clk
0:04:24.8]} 14. Qd4 {[%clk 0:04:21.7]} 14... e5 {[%clk 0:04:15.8]} 15. Qb4
{[%clk 0:04:16.9]} 15... Qxb4 {[%clk 0:04:12.7]} 16. cxb4 {[%clk 0:04:16.8]}
16... exf4 {[%clk 0:04:11.4]} 17. exf4 {[%clk 0:04:16.4]} 17... Re8+ {[%clk
0:04:10.5]} 18. Kd2 {[%clk 0:04:14.9]} 18... Nf6 {[%clk 0:04:07.1]} 19. g5
{[%clk 0:04:12.3]} 19... Ne4+ {[%clk 0:04:05.4]} 20. Kc2 {[%clk 0:03:55.9]}
20... Nxf2 {[%clk 0:04:01.9]} 21. Rg1 {[%clk 0:03:54.8]} 21... Ne4 {[%clk
0:03:59.1]} 22. h4 {[%clk 0:03:48.9]} 22... Bf5 {[%clk 0:03:57.5]} 23. Kb3
{[%clk 0:03:45.6]} 23... Nd2+ {[%clk 0:03:55.3]} 24. Ka3 {[%clk 0:03:43]} 24...
Nxf1 {[%clk 0:03:53.6]} 25. Raxf1 {[%clk 0:03:41.7]} 25... Re3+ {[%clk
0:03:49.9]} 26. b3 {[%clk 0:03:39.6]} 26... a5 {[%clk 0:03:46.7]} 27. Re1 {[%clk
0:03:32.4]} 27... Rxe1 {[%clk 0:03:44.3]} 28. Rxe1 {[%clk 0:03:32.3]} 28...
axb4+ {[%clk 0:03:42.8]} 29. Kxb4 {[%clk 0:03:29.5]} 29... g6 {[%clk 0:03:41.3]}
30. Re7 {[%clk 0:03:23.5]} 30... Rxa2 {[%clk 0:03:32.8]} 31. Rc7 {[%clk
0:03:20]} 31... Ra6 {[%clk 0:03:24.7]} 32. Rb7 {[%clk 0:03:15.1]} 32... Kg7
{[%clk 0:03:20]} 33. Rb6 {[%clk 0:03:13]} 33... Rxb6 {[%clk 0:03:14.1]} 34. cxb6
{[%clk 0:03:12.9]} 34... Bc8 {[%clk 0:03:12.6]} 35. Kc5 {[%clk 0:03:09.9]} 35...
Kf8 {[%clk 0:03:11.4]} 36. Kxc6 {[%clk 0:03:08.5]} 36... Ke7 {[%clk 0:03:10.8]}
37. Kc7 {[%clk 0:02:58.5]} 37... Ba6 {[%clk 0:02:57.5]} 38. b7 {[%clk
0:02:38.4]} 38... Bxb7 {[%clk 0:02:54.1]} 39. Kxb7 {[%clk 0:02:38.3]} 39... d4
{[%clk 0:02:53.1]} 0-1

[Event "Live Chess"]
[Site "Chess.com"]
[Date "2024.06.01"]
[Round "-"]
[White "sebmoran1"]
[Black "Eva3337"]
[Result "1-0"]
[WhiteElo "1474"]
[BlackElo "1153"]
[TimeControl "300"]
[EndTime "13:02:24 PDT"]
[Termination "sebmoran1 won on time"]

1. e4 {[%clk 0:04:57]} 1... Nc6 {[%clk 0:04:56.9]} 2. Bb5 {[%clk 0:04:55.9]}
2... a6 {[%clk 0:04:53.9]} 3. Ba4 {[%clk 0:04:54.4]} 3... b5 {[%clk 0:04:50.2]}
4. Bb3 {[%clk 0:04:53]} 4... d6 {[%clk 0:04:44.1]} 5. Qf3 {[%clk 0:04:51]} 5...
Nf6 {[%clk 0:04:35.3]} 6. g4 {[%clk 0:04:48]} 6... Ne5 {[%clk 0:04:33.3]} 7. Qg2
{[%clk 0:04:36.2]} 7... Bxg4 {[%clk 0:04:30.6]} 8. f4 {[%clk 0:04:33.9]} 8...
Nc4 {[%clk 0:03:56.4]} 9. h3 {[%clk 0:04:30]} 9... Be6 {[%clk 0:03:34.3]} 10. f5
{[%clk 0:04:23.2]} 10... Bd7 {[%clk 0:03:30.5]} 11. d3 {[%clk 0:04:22.4]} 11...
Ne5 {[%clk 0:03:17.7]} 12. Nc3 {[%clk 0:04:20.4]} 12... e6 {[%clk 0:03:15.6]}
13. fxe6 {[%clk 0:04:14.9]} 13... Bxe6 {[%clk 0:03:14]} 14. Bxe6 {[%clk
0:04:13.2]} 14... fxe6 {[%clk 0:03:12.5]} 15. Bf4 {[%clk 0:04:09.9]} 15... Rb8
{[%clk 0:02:36.5]} 16. O-O-O {[%clk 0:03:55.1]} 16... Rg8 {[%clk 0:02:30.4]} 17.
Nf3 {[%clk 0:03:52.6]} 17... Nxf3 {[%clk 0:02:14.8]} 18. Qxf3 {[%clk 0:03:52.5]}
18... b4 {[%clk 0:01:59]} 19. Ne2 {[%clk 0:03:49.6]} 19... e5 {[%clk 0:01:56.5]}
20. Bg5 {[%clk 0:03:46.2]} 20... Be7 {[%clk 0:01:54.3]} 21. d4 {[%clk
0:03:44.9]} 21... h6 {[%clk 0:01:48.7]} 22. Bh4 {[%clk 0:03:41.3]} 22... g5
{[%clk 0:01:46.8]} 23. Bf2 {[%clk 0:03:38.9]} 23... Rf8 {[%clk 0:01:39.1]} 24.
Qd3 {[%clk 0:03:30.3]} 24... Nh5 {[%clk 0:01:29.5]} 25. Qxa6 {[%clk 0:03:24.1]}
25... Nf4 {[%clk 0:01:24.1]} 26. Nxf4 {[%clk 0:03:22.7]} 26... Rxf4 {[%clk
0:01:22.1]} 27. Bg3 {[%clk 0:03:21.6]} 27... Rf3 {[%clk 0:01:17.8]} 28. Bh2
{[%clk 0:03:18.3]} 28... Rf2 {[%clk 0:01:13]} 29. dxe5 {[%clk 0:03:16.1]} 29...
g4 {[%clk 0:00:46.3]} 30. exd6 {[%clk 0:03:12.3]} 30... Bg5+ {[%clk 0:00:44.2]}
31. Kb1 {[%clk 0:03:09.6]} 31... Qf6 {[%clk 0:00:16.1]} 32. dxc7 {[%clk
0:03:02.8]} 32... Qxa6 {[%clk 0:00:11.3]} 33. cxb8=Q+ {[%clk 0:03:01.8]} 33...
Kf7 {[%clk 0:00:09.1]} 34. Qc7+ {[%clk 0:02:55.6]} 34... Kg6 {[%clk 0:00:06.7]}
35. Rd6+ {[%clk 0:02:50]} 35... Qxd6 {[%clk 0:00:03.8]} 36. Qxd6+ {[%clk
0:02:47.8]} 36... Kh5 {[%clk 0:00:03]} 37. hxg4+ {[%clk 0:02:46.1]} 37... Kxg4
{[%clk 0:00:01.2]} 38. Qg3+ {[%clk 0:02:43.3]} 1-0

[Event "Live Chess"]
[Site "Chess.com"]
[Date "2024.06.01"]
[Round "-"]
[White "ShanthamGrarks"]
[Black "gobbles19"]
[Result "0-1"]
[WhiteElo "1901"]
[BlackElo "2252"]
[TimeControl "300"]
[EndTime "13:02:33 PDT"]
[Termination "gobbles19 won by resignation"]

1. d4 {[%clk 0:04:49.7]} 1... Nf6 {[%clk 0:04:58]} 2. Nc3 {[%clk 0:04:49]} 2...
d6 {[%clk 0:04:56.5]} 3. e4 {[%clk 0:04:48.2]} 3... g6 {[%clk 0:04:53.2]} 4. Bg5
{[%clk 0:04:46.4]} 4... h6 {[%clk 0:04:51.9]} 5. Bxf6 {[%clk 0:04:44.2]} 5...
exf6 {[%clk 0:04:50.8]} 6. Bc4 {[%clk 0:04:41.8]} 6... Bg7 {[%clk 0:04:49.4]} 7.
Nf3 {[%clk 0:04:38]} 7... O-O {[%clk 0:04:45.5]} 8. Nh4 {[%clk 0:04:33.7]} 8...
Kh7 {[%clk 0:04:36.8]} 9. f4 {[%clk 0:04:30.9]} 9... f5 {[%clk 0:04:33.6]} 10.
exf5 {[%clk 0:04:27.5]} 10... Qxh4+ {[%clk 0:04:30.7]} 11. g3 {[%clk 0:04:25.8]}
11... Qe7+ {[%clk 0:04:25.8]} 12. Kf2 {[%clk 0:04:23.6]} 12... Bxf5 {[%clk
0:04:22.4]} 13. Re1 {[%clk 0:04:22.3]} 13... Qd7 {[%clk 0:04:19.2]} 14. Bd3
{[%clk 0:04:16]} 14... Bxd4+ {[%clk 0:04:15.6]} 15. Kg2 {[%clk 0:04:14.3]} 15...
Bh3+ {[%clk 0:04:14.2]} 16. Kh1 {[%clk 0:04:11.9]} 16... Bg7 {[%clk 0:03:46.5]}
17. Qf3 {[%clk 0:04:01.3]} 17... Nc6 {[%clk 0:03:43.6]} 18. Ne4 {[%clk
0:03:55.9]} 18... Nd4 {[%clk 0:03:39.3]} 19. Qe3 {[%clk 0:03:50]} 19... Rae8
{[%clk 0:03:30.8]} 20. c3 {[%clk 0:03:47.2]} 20... Nf5 {[%clk 0:03:24.8]} 21.
Qf3 {[%clk 0:03:46]} 21... Ne7 {[%clk 0:02:53.7]} 22. Nf2 {[%clk 0:03:16.9]}
22... Bf5 {[%clk 0:02:51]} 23. Rad1 {[%clk 0:03:12.1]} 23... Bxd3 {[%clk
0:02:47.8]} 24. Nxd3 {[%clk 0:03:10.9]} 24... Nf5 {[%clk 0:02:34.9]} 25. Nb4
{[%clk 0:03:05.6]} 25... c6 {[%clk 0:02:28.9]} 26. g4 {[%clk 0:02:58.8]} 26...
Ne7 {[%clk 0:02:09.7]} 27. f5 {[%clk 0:02:48]} 27... gxf5 {[%clk 0:02:07.5]} 28.
g5 {[%clk 0:02:46.8]} 28... Ng6 {[%clk 0:02:02.6]} 29. gxh6 {[%clk 0:02:45.3]}
29... Bxh6 {[%clk 0:02:01.9]} 30. Rg1 {[%clk 0:02:38.3]} 30... Qe6 {[%clk
0:01:48.3]} 31. Rde1 {[%clk 0:02:31.5]} 31... Qf6 {[%clk 0:01:46.3]} 32. Nd3
{[%clk 0:02:27.1]} 32... Ne5 {[%clk 0:01:35.5]} 33. Qh3 {[%clk 0:02:19.2]} 33...
Nxd3 {[%clk 0:01:29.1]} 34. Qxd3 {[%clk 0:02:18.1]} 34... Rxe1 {[%clk
0:01:27.2]} 35. Rxe1 {[%clk 0:02:15.6]} 35... Rg8 {[%clk 0:01:24.5]} 36. Rf1
{[%clk 0:02:13.5]} 36... Qg6 {[%clk 0:01:20.1]} 37. Qf3 {[%clk 0:02:08]} 37...
f4 {[%clk 0:01:16.6]} 38. b4 {[%clk 0:01:58.2]} 38... d5 {[%clk 0:01:14.9]} 39.
a4 {[%clk 0:01:57.2]} 39... Qe4 {[%clk 0:01:13.6]} 40. h3 {[%clk 0:01:52.2]}
40... Rg3 {[%clk 0:01:10.1]} 41. Qxe4+ {[%clk 0:01:49.7]} 41... dxe4 {[%clk
0:01:10]} 42. Kh2 {[%clk 0:01:48.2]} 42... Rxc3 {[%clk 0:01:08.6]} 43. h4 {[%clk
0:01:47]} 43... e3 {[%clk 0:01:04.7]} 44. h5 {[%clk 0:01:46.3]} 44... e2 {[%clk
0:01:01.3]} 45. Re1 {[%clk 0:01:44.8]} 45... f3 {[%clk 0:01:00.7]} 46. Kg3
{[%clk 0:01:43.8]} 46... Bd2 {[%clk 0:00:59.9]} 47. Rxe2 {[%clk 0:01:35]} 47...
fxe2+ {[%clk 0:00:58.7]} 0-1

[Event "Live Chess"]
[Site "Chess.com"]
[Date "2024.06.01"]
[Round "-"]
[White "blunderabit"]
[Black "KeithArkell"]
[Result "0-1"]
[WhiteElo "1809"]
[BlackElo "2457"]
[TimeControl "300"]
[EndTime "13:02:35 PDT"]
[Termination "KeithArkell won by resignation"]

1. e4 {[%clk 0:04:40.7]} 1... c6 {[%clk 0:04:59.2]} 2. d4 {[%clk 0:04:36.3]}
2... d5 {[%clk 0:04:58.5]} 3. Nc3 {[%clk 0:04:33.2]} 3... dxe4 {[%clk
0:04:57.5]} 4. Nxe4 {[%clk 0:04:32.3]} 4... Nd7 {[%clk 0:04:57.2]} 5. Ng5 {[%clk
0:04:28.9]} 5... Ngf6 {[%clk 0:04:56.1]} 6. Bc4 {[%clk 0:04:26.1]} 6... e6
{[%clk 0:04:53.4]} 7. Qe2 {[%clk 0:04:24.1]} 7... Nb6 {[%clk 0:04:52.4]} 8. Bd3
{[%clk 0:04:17.2]} 8... h6 {[%clk 0:04:50.6]} 9. N5f3 {[%clk 0:04:13.6]} 9... c5
{[%clk 0:04:50]} 10. dxc5 {[%clk 0:04:09]} 10... Nbd7 {[%clk 0:04:48.4]} 11. Be3
{[%clk 0:03:56.9]} 11... Bxc5 {[%clk 0:04:46.6]} 12. Bxc5 {[%clk 0:03:52.3]}
12... Nxc5 {[%clk 0:04:45.8]} 13. Bb5+ {[%clk 0:03:46]} 13... Bd7 {[%clk
0:04:44.9]} 14. Bxd7+ {[%clk 0:03:41.2]} 14... Qxd7 {[%clk 0:04:41.9]} 15. Ne5
{[%clk 0:03:36.8]} 15... Qd5 {[%clk 0:04:40.4]} 16. Ngf3 {[%clk 0:03:33.4]}
16... O-O {[%clk 0:04:38.2]} 17. O-O {[%clk 0:03:24.1]} 17... Qe4 {[%clk
0:04:37.4]} 18. Qxe4 {[%clk 0:03:16.2]} 18... Nfxe4 {[%clk 0:04:34.5]} 19. Rfd1
{[%clk 0:03:13.8]} 19... Rfd8 {[%clk 0:04:31.2]} 20. g3 {[%clk 0:03:03.4]} 20...
Na4 {[%clk 0:04:24.2]} 21. Nd3 {[%clk 0:02:53.7]} 21... Rac8 {[%clk 0:04:21]}
22. Rac1 {[%clk 0:02:47.9]} 22... b5 {[%clk 0:04:17.9]} 23. a3 {[%clk
0:02:43.7]} 23... Nb6 {[%clk 0:04:15]} 24. c3 {[%clk 0:02:33.6]} 24... Nc4
{[%clk 0:04:12.4]} 25. b3 {[%clk 0:02:12]} 25... Nxa3 {[%clk 0:04:09.5]} 26. Ra1
{[%clk 0:02:09.4]} 26... Nxc3 {[%clk 0:04:05.9]} 27. Rd2 {[%clk 0:01:48.8]}
27... Nab1 {[%clk 0:03:50.8]} 0-1

[Event "Live Chess"]
[Site "Chess.com"]
[Date "2024.06.01"]
[Round "-"]
[White "DoctorMantisTobogganMD"]
[Black "DarranAS"]
[Result "1-0"]
[WhiteElo "2170"]
[BlackElo "1454"]
[TimeControl "300"]
[EndTime "13:02:40 PDT"]
[Termination "DoctorMantisTobogganMD won on time"]

1. e4 {[%clk 0:04:59.2]} 1... e5 {[%clk 0:04:54.3]} 2. Nc3 {[%clk 0:04:58.5]}
2... Nf6 {[%clk 0:04:49.9]} 3. Bc4 {[%clk 0:04:57.9]} 3... c6 {[%clk 0:04:43.3]}
4. Bb3 {[%clk 0:04:56.4]} 4... Na6 {[%clk 0:04:38.8]} 5. d3 {[%clk 0:04:55.1]}
5... Nc5 {[%clk 0:04:35.7]} 6. Nge2 {[%clk 0:04:53.7]} 6... Nxb3 {[%clk
0:04:33.8]} 7. axb3 {[%clk 0:04:53.6]} 7... d5 {[%clk 0:04:31.8]} 8. O-O {[%clk
0:04:50.7]} 8... d4 {[%clk 0:04:29.8]} 9. Nb1 {[%clk 0:04:49.5]} 9... Be6 {[%clk
0:04:17.1]} 10. f4 {[%clk 0:04:48.1]} 10... Bd6 {[%clk 0:04:13.6]} 11. fxe5
{[%clk 0:04:46.3]} 11... Bxe5 {[%clk 0:04:12.3]} 12. Bf4 {[%clk 0:04:45.9]}
12... Qd6 {[%clk 0:04:05.2]} 13. Bxe5 {[%clk 0:04:43]} 13... Qxe5 {[%clk
0:04:02.7]} 14. h3 {[%clk 0:04:40.5]} 14... O-O-O {[%clk 0:04:00.6]} 15. Rxa7
{[%clk 0:04:38.4]} 15... Kb8 {[%clk 0:03:59.6]} 16. Ra4 {[%clk 0:04:35.4]} 16...
c5 {[%clk 0:03:45.6]} 17. Nd2 {[%clk 0:04:34.1]} 17... g5 {[%clk 0:03:41.5]} 18.
Qa1 {[%clk 0:04:22.9]} 18... g4 {[%clk 0:03:32.7]} 19. Ra8+ {[%clk 0:04:20.8]}
19... Kc7 {[%clk 0:03:30.8]} 20. Qa5+ {[%clk 0:04:20.4]} 20... b6 {[%clk
0:03:28.9]} 21. Qa7+ {[%clk 0:04:14.5]} 21... Kc6 {[%clk 0:03:25.8]} 22. Qa4+
{[%clk 0:04:14.1]} 22... Kc7 {[%clk 0:03:22.1]} 23. Ra7+ {[%clk 0:04:12.8]}
23... Kd6 {[%clk 0:03:14]} 24. Qb5 {[%clk 0:03:51.4]} 24... Rb8 {[%clk
0:03:08.7]} 25. Ra6 {[%clk 0:03:34]} 25... Nd7 {[%clk 0:02:52.9]} 26. Nf4 {[%clk
0:03:24.9]} 26... Qg5 {[%clk 0:02:40.4]} 27. Nxe6 {[%clk 0:03:18.4]} 27... Qxd2
{[%clk 0:02:29.1]} 28. Rxf7 {[%clk 0:02:40.8]} 28... Qe3+ {[%clk 0:02:13.1]} 29.
Kf1 {[%clk 0:02:28.5]} 29... Qc1+ {[%clk 0:02:10]} 30. Kf2 {[%clk 0:02:23.1]}
30... Qe3+ {[%clk 0:02:07.5]} 31. Kf1 {[%clk 0:02:21]} 31... Qc1+ {[%clk
0:02:06.4]} 32. Ke2 {[%clk 0:02:17.2]} 32... Qxc2+ {[%clk 0:01:51.4]} 33. Kf1
{[%clk 0:02:05.2]} 33... Qd1+ {[%clk 0:01:47.9]} 34. Kf2 {[%clk 0:02:02.9]}
34... Qd2+ {[%clk 0:01:40.2]} 35. Kg1 {[%clk 0:01:57]} 35... Qe3+ {[%clk
0:01:38.3]} 36. Kf1 {[%clk 0:01:34.6]} 36... Qc1+ {[%clk 0:01:34.8]} 37. Ke2
{[%clk 0:01:27.2]} 37... Qe3+ {[%clk 0:01:30.1]} 38. Kd1 {[%clk 0:01:24.5]}
38... Qg1+ {[%clk 0:01:23.6]} 39. Kc2 {[%clk 0:01:23]} 39... Qxg2+ {[%clk
0:01:20.7]} 40. Kb1 {[%clk 0:01:22.6]} 40... Rb7 {[%clk 0:00:27.1]} 41. Rxd7+
{[%clk 0:01:13.9]} 41... Rxd7 {[%clk 0:00:25]} 42. Rxb6+ {[%clk 0:01:12]} 42...
Ke7 {[%clk 0:00:22.7]} 43. Qxc5+ {[%clk 0:01:11.2]} 43... Kf7 {[%clk 0:00:20.5]}
44. Qf5+ {[%clk 0:01:07.6]} 44... Ke7 {[%clk 0:00:15.7]} 45. Qg5+ {[%clk
0:01:05.1]} 45... Kf7 {[%clk 0:00:11.9]} 46. Qg7+ {[%clk 0:01:00.5]} 46... Ke8
{[%clk 0:00:08.1]} 47. Rb8+ {[%clk 0:00:58.2]} 1-0

[Event "Live Chess"]
[Site "Chess.com"]
[Date "2024.06.01"]
[Round "-"]
[White "yarek"]
[Black "CarmelJane"]
[Result "0-1"]
[WhiteElo "1721"]
[BlackElo "2078"]
[TimeControl "300"]
[EndTime "13:02:42 PDT"]
[Termination "CarmelJane won - game abandoned"]

1. e4 {[%clk 0:04:57.5]} 1... g6 {[%clk 0:04:59.6]} 2. d4 {[%clk 0:04:55.7]}
2... Bg7 {[%clk 0:04:59.5]} 3. Be3 {[%clk 0:04:53.1]} 3... c5 {[%clk 0:04:59.4]}
4. c3 {[%clk 0:04:50]} 4... cxd4 {[%clk 0:04:58.3]} 5. cxd4 {[%clk 0:04:48.5]}
5... d5 {[%clk 0:04:58]} 6. e5 {[%clk 0:04:46.8]} 6... Nc6 {[%clk 0:04:56.8]} 7.
h3 {[%clk 0:04:35.5]} 7... a6 {[%clk 0:04:52.4]} 8. Nf3 {[%clk 0:04:34.9]} 8...
Nh6 {[%clk 0:04:47]} 9. Bd3 {[%clk 0:04:31.7]} 9... Nf5 {[%clk 0:04:45.1]} 10.
O-O {[%clk 0:04:24.2]} 10... O-O {[%clk 0:04:37]} 11. Nc3 {[%clk 0:04:19.5]}
11... b5 {[%clk 0:04:21.3]} 12. a3 {[%clk 0:04:17.2]} 12... Nxe3 {[%clk
0:04:08.2]} 13. fxe3 {[%clk 0:04:15.3]} 13... Bh6 {[%clk 0:04:07.6]} 14. Qe2
{[%clk 0:04:00]} 14... Be6 {[%clk 0:04:05.6]} 15. Rac1 {[%clk 0:03:48.5]} 15...
Qd7 {[%clk 0:04:03.9]} 16. Kh2 {[%clk 0:03:45.2]} 16... Na5 {[%clk 0:04:02.8]}
17. Nd2 {[%clk 0:03:24.9]} 17... Nc4 {[%clk 0:03:55.5]} 18. Nxc4 {[%clk
0:03:22.2]} 18... bxc4 {[%clk 0:03:55.4]} 19. Bc2 {[%clk 0:03:19.3]} 19... Rab8
{[%clk 0:03:51.6]} 20. Ba4 {[%clk 0:03:16.2]} 20... Qc8 {[%clk 0:03:46.3]} 21.
Rc2 {[%clk 0:02:53.6]} 21... Bf5 {[%clk 0:03:25.1]} 22. Rd2 {[%clk 0:02:44.6]}
22... Bd3 {[%clk 0:03:24.4]} 23. Qf3 {[%clk 0:02:38.5]} 23... Bxf1 {[%clk
0:03:21]} 24. Qxf1 {[%clk 0:02:38.4]} 24... Bxe3 {[%clk 0:03:18.9]} 25. Rd1
{[%clk 0:02:34.1]} 25... Rxb2 {[%clk 0:03:16.3]} 26. Nxd5 {[%clk 0:02:30.4]}
26... Bg5 {[%clk 0:03:05]} 27. Rc1 {[%clk 0:02:06.7]} 27... Qe6 {[%clk
0:02:53.4]} 28. Nf4 {[%clk 0:01:56.4]} 28... Qf5 {[%clk 0:02:43.3]} 0-1

[Event "Live Chess"]
[Site "Chess.com"]
[Date "2024.06.01"]
[Round "-"]
[White "ACM42"]
[Black "Kyrylo7770"]
[Result "1-0"]
[WhiteElo "2199"]
[BlackElo "1671"]
[TimeControl "300"]
[EndTime "13:02:45 PDT"]
[Termination "ACM42 won by checkmate"]

1. e4 {[%clk 0:04:58]} 1... c6 {[%clk 0:04:59.6]} 2. d4 {[%clk 0:04:56.1]} 2...
d5 {[%clk 0:04:59.3]} 3. e5 {[%clk 0:04:55.6]} 3... Bf5 {[%clk 0:04:58.7]} 4.
Nc3 {[%clk 0:04:54.9]} 4... e6 {[%clk 0:04:58.2]} 5. g4 {[%clk 0:04:54.4]} 5...
Bg6 {[%clk 0:04:55.5]} 6. Nge2 {[%clk 0:04:53.9]} 6... Bb4 {[%clk 0:04:53.9]} 7.
h4 {[%clk 0:04:52.1]} 7... h5 {[%clk 0:04:52.8]} 8. Nf4 {[%clk 0:04:49.4]} 8...
Bxc3+ {[%clk 0:04:50.4]} 9. bxc3 {[%clk 0:04:48.2]} 9... Be4 {[%clk 0:04:50.1]}
10. f3 {[%clk 0:04:44.2]} 10... Bg6 {[%clk 0:04:45.2]} 11. Nxg6 {[%clk
0:04:31.9]} 11... fxg6 {[%clk 0:04:44.2]} 12. Bd3 {[%clk 0:04:23.1]} 12... Ne7
{[%clk 0:04:41.7]} 13. Bg5 {[%clk 0:04:20.5]} 13... Qa5 {[%clk 0:04:37.4]} 14.
Qd2 {[%clk 0:04:08.9]} 14... Qc7 {[%clk 0:04:33.9]} 15. Bxe7 {[%clk 0:04:05.5]}
15... Qxe7 {[%clk 0:04:33]} 16. Bxg6+ {[%clk 0:04:04.1]} 16... Kd7 {[%clk
0:04:32.2]} 17. gxh5 {[%clk 0:03:46.5]} 17... Na6 {[%clk 0:04:26.9]} 18. Rb1
{[%clk 0:03:42.7]} 18... Rab8 {[%clk 0:04:25.2]} 19. Rb3 {[%clk 0:03:40.2]}
19... b5 {[%clk 0:04:23.5]} 20. Qg5 {[%clk 0:03:33.1]} 20... Qf8 {[%clk
0:04:21.5]} 21. Ke2 {[%clk 0:03:30.3]} 21... c5 {[%clk 0:04:13.2]} 22. f4 {[%clk
0:03:25.8]} 22... cxd4 {[%clk 0:04:12.4]} 23. cxd4 {[%clk 0:03:24.2]} 23... Nb4
{[%clk 0:04:04.9]} 24. f5 {[%clk 0:03:16.9]} 24... Rc8 {[%clk 0:04:04.2]} 25. c3
{[%clk 0:03:04.6]} 25... Nxa2 {[%clk 0:03:53.9]} 26. fxe6+ {[%clk 0:03:02.6]}
26... Kc7 {[%clk 0:03:53.3]} 27. Rf1 {[%clk 0:02:56.1]} 27... Qd8 {[%clk
0:03:29]} 28. Qd2 {[%clk 0:02:30]} 28... Qxh4 {[%clk 0:03:17.4]} 29. Qxa2 {[%clk
0:02:23.5]} 29... Qh2+ {[%clk 0:03:16.5]} 30. Rf2 {[%clk 0:02:22.1]} 30... Qh3
{[%clk 0:02:56.7]} 31. Qxa7+ {[%clk 0:02:19.5]} 31... Kc6 {[%clk 0:02:53.1]} 32.
Qd7+ {[%clk 0:02:12.7]} 32... Kb6 {[%clk 0:02:51.9]} 33. Rxb5+ {[%clk
0:02:12.2]} 33... Ka6 {[%clk 0:02:50.3]} 34. Qb7# {[%clk 0:02:10.9]} 1-0